[Event "67th Mexican-ch Open 2022"]
[Site "Chihuahua"]
[Date "2022.04.16"]
[Round "6.5"]
[White "Hernandez Guerrero, Gilberto"]
[Black "Ibarra Chami, Luis Fernando"]
[Result "1-0"]
[ECO "C83"]
[WhiteElo "2564"]
[BlackElo "2451"]
[Annotator "TA"]
[PlyCount "55"]
[EventDate "2022.04.12"]
[EventType "swiss"]
[EventCountry "MEX"]
[SourceTitle "playchess.com"]
[Source "ChessBase"]
[SourceQuality "1"]
[TimeControl "5400+30"]

{[%evp 23,55,36,16,22,55,55,87,82,70,83,68,82,81,66,159,164,164,167,189,187,183,202,195,182,183,180,359,358,430,454,455,444,424,413]} 1. e4 {[%emt 0:00:05] ChessBase} e5 {[%emt 0:03:20]} 2. Nf3 {[%emt 0:00:41]} Nc6 {[%emt 0:00:07]} 3. Bb5 {[%emt 0:00:17]} a6 {[%emt 0:00:20]} 4. Ba4 {[%emt 0:00:18]} Nf6 {[%emt 0:00:23]} 5. O-O {[%emt 0:00:29]} Nxe4 {[%emt 0:01:24]} 6. d4 {[%emt 0:00:45]} b5 {[%emt 0:00:14]} 7. Bb3 {[%emt 0:00:07]} d5 {[%emt 0:00:09]} 8. dxe5 {[%emt 0:00:13]} Be6 {[%emt 0:00:22]} 9. Nbd2 {[%emt 0:00:12]} Be7 {[%emt 0:03:19]} 10. c3 {[%emt 0:03:33]} O-O {[%emt 0:01:20]} 11. Bc2 {[%emt 0:06:28]} f5 {[%emt 0:01:19]} 12. Nb3 {[%emt 0:04:43]} Qd7 {[%emt 0:02:33]} 13. Re1 {[%emt 0:09:19] C83: Open Ruy Lopez: 9 c3 Be7.} Nd8 {[%emt 0:17:02]} 14. Nfd4 $1 {[%emt 0:10:30]} c5 {[%emt 0:10:14]} 15. Nxe6 {[%emt 0:00:08] White is better.} Nxe6 {[%emt 0:16:16]} 16. f3 {[%emt 0:01:16]} N4g5 {[%emt 0:01:02]} 17. h4 {[%emt 0:01:43]} Nf7 {[%emt 0:05:52]} 18. Bxf5 {[%emt 0:01:30][%cal Bc2f5,Bf5e6,Be6b3][%mdl 32]} Bxh4 {[%emt 0:08:15] [#]} ({Better is} 18... Kh8 $14) 19. Nxc5 $146 {[%emt 0:01:35][%mdl 512]} ({Predecessor:} 19. Re2 Be7 20. Be3 Rac8 21. Rd2 Rfd8 22. f4 Nh6 23. Bh3 g6 24. Rxd5 Qc6 25. Rd6 Rxd6 26. exd6 Qe4 {1-0 (26) Dominik,J-Flamberg,A Warsaw 1919 EXT 1999 [ChessBase]}) 19... Qa7 {[%emt 0:00:14]} 20. Bxe6 {[%emt 0:00:27]} Bxe1 {[%emt 0:01:14]} 21. Be3 {[%emt 0:00:47]} (21. Qxe1 Qxc5+ 22. Be3 Qc6 $11) (21. Qxd5 $6 Rad8 22. Bxf7+ Kh8 $14) 21... Bg3 {[%emt 0:07:44]} 22. Qxd5 {[%emt 0:06:12]} Rad8 {[%emt 0:00:37]} 23. Qe4 {[%emt 0:06:22]} Qe7 {[%emt 0:02:50] Against Nd7} 24. Bb3 $36 {[%emt 0:02:27][%mdl 2048] Strongly threatening Ne6. White is really pushing. The board is on fire. This bishop pair is nice.} Kh8 $2 {[%emt 0:13:29]} (24... Qxe5 25. Qxe5 Bxe5) 25. Ne6 $18 {[%emt 0:05:41] [#] Bc5 is the strong threat.} ({Weaker is} 25. Nxa6 Nxe5 26. Bc2 g6 $14) ({Less strong is} 25. Bc2 g6 26. Bb3 Ng5 $18) 25... Nxe5 {[%emt 0:00:03]} 26. Bc5 {[%emt 0:01:24] White is clearly winning.} ({Not} 26. Nxf8 Qxf8 27. Bc2 Ng6 $18) (26. Nxd8 Rxd8 27. a4 Qd7 $18) 26... Qf6 {[%emt 0:03:08][%cal Of6h6]} 27. Bxf8 {[%emt 0:00:42]} Rxf8 {[%emt 0:00:09]} 28. Nxf8 {[%emt 0:00:08] White took control after the opening.  Weighted Error Value: White=0.01 (flawless) /Black=0.37} 1-0

[Event "67th Mexican-ch Open 2022"]
[Site "Chihuahua"]
[Date "2022.04.16"]
[Round "6.6"]
[White "Cori Quispe, Kevin Joel"]
[Black "Diaz Villagran, Robert"]
[Result "1-0"]
[ECO "C18"]
[WhiteElo "2492"]
[BlackElo "2318"]
[Annotator "TA"]
[PlyCount "69"]
[EventDate "2022.04.12"]
[EventType "swiss"]
[EventCountry "MEX"]
[SourceTitle "playchess.com"]
[Source "ChessBase"]
[SourceQuality "1"]
[TimeControl "5400+30"]

{[%evp 14,69,14,13,3,0,33,42,53,41,45,46,87,83,86,77,512,158,167,180,155,159,213,227,228,185,188,162,235,231,232,220,365,364,414,406,721,714,772,772,779,775,737,624,720,693,690,692,688,674,650,705,1179,1151,1043,925,1374,1333]} 1. e4 {[%emt 0:03:33]} e6 {[%emt 0:00:16]} 2. d4 {[%emt 0:00:21]} d5 {[%emt 0:00:05]} 3. Nc3 {[%emt 0:00:04]} Bb4 {[%emt 0:00:11]} 4. e5 {[%emt 0:00:06]} Ne7 {[%emt 0:00:05]} 5. a3 {[%emt 0:00:31]} Bxc3+ {[%emt 0:00:06]} 6. bxc3 {[%emt 0:00:04]} c5 {[%emt 0:00:05]} 7. Qg4 {[%emt 0:02:18]} Kf8 {[%emt 0:00:28]} 8. a4 {[%emt 0:08:06]} Qc7 {[%emt 0:02:41] C18: French: 3 Nc3 Bb4: Main line: 7 h4 and 7 Qg4.} 9. Nf3 {[%emt 0:05:55] is the legacy move (9.Qd1).} b6 {[%emt 0:01:56]} 10. Bd3 {[%emt 0:14:09]} Ba6 {[%emt 0:08:37] White is slightly better.} 11. Ba3 {[%emt 0:03:06]} h6 {[%emt 0:08:24]} 12. O-O {[%emt 0:03:15][%cal Oc3c4] [#]} c4 $146 {[%emt 0:22:40]} ({Predecessor:} 12... Kg8 13. dxc5 bxc5 14. c4 Bxc4 15. Bxc4 dxc4 16. Qxc4 Nd7 17. Rfe1 Kh7 18. Qe4+ g6 {½-½ (45) Quesada Perez,Y (2614)-Dizdarevic,E (2475) Khanty-Mansiysk 2010}) 13. Be2 {[%emt 0:02:57] 0x0.00018dd7ffe2dp-1022s more active pieces.} Nbc6 {[%emt 0:00:13]} 14. Nh4 {[%emt 0:04:17]} g5 $2 {[%emt 0:01:31][%mdl 8192] [#]} (14... Kg8 $16 {is tougher.}) 15. Nf3 $2 {[%emt 0:00:33]} (15. f4 $1 $18 {[%cal Rf4f5] is the precise move to win.} gxh4 16. f5) 15... Ke8 {[%emt 0:00:10]} 16. Qh5 {[%emt 0:06:00][%cal Of3g5] And now Nxg5! would win.} Ng6 {[%emt 0:01:53] [#] Threatens to win with ...Nf4.} 17. g3 {[%emt 0:00:06] Prevents Nf4.} Qd8 {[%emt 0:04:40]} (17... Kd7 $16 {might work better.} 18. Ne1 Rag8) 18. Ne1 $18 {[%emt 0:10:01]} Nce7 {[%emt 0:06:28]} 19. Qh3 {[%emt 0:00:30]} Nf5 {[%emt 0:02:23][%cal Oh6h5] [#]} 20. Bh5 $1 {[%emt 0:00:11]} Kd7 {[%emt 0:02:01]} (20... Ng7 $142 21. Ng2 Nh4) 21. Ng2 {[%emt 0:00:32]} Kc6 {[%emt 0:06:36]} 22. f4 {[%emt 0:09:10][%cal Bf2f4,Bf4f5][%mdl 32] aiming for g4.} Rh7 {[%emt 0:04:59]} (22... Ng7 $142 23. fxg5 Nxh5) 23. g4 {[%emt 0:05:14]} Nfh4 {[%emt 0:03:57]} 24. f5 {[%emt 0:03:00]} Nf4 {[%emt 0:01:33]} (24... Qg8 $142 25. Bxg6 (25. fxg6 fxg6 26. Nxh4 gxh4 $18) 25... Nxg6 26. fxg6 Qxg6) 25. Nxf4 {[%emt 0:00:27][%cal Of5e6] White is clearly winning.} gxf4 {[%emt 0:00:08]} 26. fxe6 {[%emt 0:00:06]} fxe6 {[%emt 0:01:10]} 27. Rxf4 {[%emt 0:00:13]} Qg5 {[%emt 0:00:23]} 28. Bc1 {[%emt 0:00:36]} Rg7 {[%emt 0:00:25]} 29. Kh1 {[%emt 0:00:38]} Rag8 {[%emt 0:00:10][%cal Og5h5] ...Qxh5! is the strong threat.} 30. Rf1 {[%emt 0:01:26]} Qd8 {[%emt 0:01:57]} 31. Bxh6 {[%emt 0:00:11]} Rh7 {[%emt 0:00:17]} 32. Rf6 {[%emt 0:00:12][%cal Bf1f6,Bf6h6,Bh6e6][%mdl 32]} Rxh6 {[%emt 0:00:39]} 33. Rxh6 {[%emt 0:00:08]} Qg5 {[%emt 0:00:02] [#]} 34. Qxh4 $3 {[%emt 0:01:29][%mdl 512]} Qe3 {[%emt 0:00:51]} (34... Qxh4 35. Be8+) 35. Rxe6+ {[%emt 0:00:50] White took control after the opening.  Weighted Error Value: White=0.40/Black=0.62} 1-0

[Event "67th Mexican-ch Open 2022"]
[Site "Chihuahua"]
[Date "2022.04.16"]
[Round "6.7"]
[White "Tapie Amione, Pablo Adib"]
[Black "Fernandez Hernandez, Arturo A."]
[Result "0-1"]
[ECO "B48"]
[WhiteElo "2241"]
[BlackElo "2376"]
[Annotator "TA"]
[PlyCount "54"]
[EventDate "2022.04.12"]
[EventType "swiss"]
[EventCountry "MEX"]
[SourceTitle "playchess.com"]
[Source "ChessBase"]
[SourceQuality "1"]
[TimeControl "5400+30"]

{[%evp 11,54,24,37,12,16,1,19,0,10,-64,-15,-14,0,-47,-37,-43,-46,-46,-46,-39,-41,-66,-68,-54,-53,-68,-64,-75,-66,-175,-163,-349,-336,-319,-200,-618,-601,-637,-609,-1961,-1947,-1533,-892,-1496,-1321]} 1. e4 {[%emt 0:06:44]} c5 {[%emt 0:00:39]} 2. Nf3 {[%emt 0:00:12]} e6 {[%emt 0:00:14]} 3. d4 {[%emt 0:00:07]} cxd4 {[%emt 0:00:05]} 4. Nxd4 {[%emt 0:00:10]} Nc6 {[%emt 0:00:30]} 5. Nc3 {[%emt 0:00:06]} Qc7 {[%emt 0:00:11]} 6. Be3 {[%emt 0:01:17]} a6 {[%emt 0:00:18]} 7. g4 {[%emt 0:12:34] Nowadays more popular than 7.Qd2. B48: Sicilian: Taimanov: 5 Nc3 Qc7 6 Be3 a6 without Be2.} b5 {[%emt 0:03:21]} 8. Nxc6 {[%emt 0:00:41]} Qxc6 {[%emt 0:00:20]} 9. Bg2 {[%emt 0:05:16] The position is equal.} Bb7 {[%emt 0:02:30][%cal Of8a3] [#]} 10. Qe2 $146 {[%emt 0:26:31]} (10. a3 $11) ({Predecessor:} 10. Qd2 Nf6 11. f3 Bc5 12. O-O-O O-O 13. g5 Nh5 14. Ne2 Rac8 15. Bxc5 Qxc5 16. Bh3 {½-½ (38) Korobov,A (2699)-Kulaots,K (2519) Sitges 2021}) 10... Ba3 {[%emt 0:07:56]} 11. Nd1 $11 {[%emt 0:02:06]} Bc5 {[%emt 0:00:15]} 12. a4 {[%emt 0:02:22]} (12. a3 $11 {was preferrable.}) 12... Ne7 $15 {[%emt 0:04:41]} 13. axb5 {[%emt 0:01:29]} axb5 {[%emt 0:00:04]} 14. Rxa8+ {[%emt 0:00:02]} Bxa8 {[%emt 0:00:01]} 15. O-O {[%emt 0:05:08]} O-O {[%emt 0:12:23]} 16. c4 {[%emt 0:05:19]} bxc4 {[%emt 0:06:40]} 17. Qxc4 {[%emt 0:00:14]} Bxe3 {[%emt 0:00:08]} 18. Nxe3 {[%emt 0:00:04]} Qb6 {[%emt 0:00:09]} 19. Rb1 {[%emt 0:02:04]} Ng6 {[%emt 0:05:08][%cal Be7g6,Bg6f4,Bf4e2][%mdl 32]} 20. Qc3 {[%emt 0:14:33]} ({White should play} 20. b4 $15) 20... Nf4 $19 {[%emt 0:01:49] White must now prevent ...Ne2+.} 21. Qe5 $2 {[%emt 0:00:08] [#]} (21. Qc4) 21... Ne2+ $1 {[%emt 0:00:29]} 22. Kh1 {[%emt 0:00:30]} d6 {[%emt 0:01:07]} 23. Nc4 {[%emt 0:00:27]} (23. Qg5) 23... Qxf2 {[%emt 0:01:35] Black is clearly winning.} ({Inferior is} 23... dxe5 24. Nxb6 Bc6 25. Rd1 $17) 24. Nxd6 {[%emt 0:04:08]} Nf4 {[%emt 0:04:47][%csl Gf4][%cal Rf2g2]} 25. Bf1 {[%emt 0:00:57]} Qf3+ {[%emt 0:02:13]} 26. Kg1 {[%emt 0:00:02]} Qe3+ {[%emt 0:00:14]} 27. Kh1 {[%emt 0:00:20]} f6 {[%emt 0:00:13] Weighted Error Value: White=0.86/Black=0.10 (very precise)} 0-1

[Event "67th Mexican-ch Open 2022"]
[Site "Chihuahua"]
[Date "2022.04.16"]
[Round "6.8"]
[White "Avila Rodriguez, Joshua Ad"]
[Black "Galaviz Medina, Sion Radamantys"]
[Result "0-1"]
[ECO "B81"]
[WhiteElo "2182"]
[BlackElo "2374"]
[Annotator "TA"]
[PlyCount "102"]
[EventDate "2022.04.12"]
[EventType "swiss"]
[EventCountry "MEX"]
[SourceTitle "playchess.com"]
[Source "ChessBase"]
[SourceQuality "1"]
[TimeControl "5400+30"]

{[%evp 15,102,56,54,51,54,56,72,29,39,46,40,0,110,-33,-34,-56,-37,-38,-35,-46,66,-12,-16,-106,-106,-133,-139,-145,-75,-62,-65,-167,-156,-165,-92,-87,-94,-73,-86,-239,-217,-216,-74,-74,-74,-68,0,-6,-7,0,0,-6,0,0,0,0,0,0,0,-69,-74,-77,-55,-47,-52,-277,-215,-830,-389,-1097,-377,-1688,-1634,-5165,-4133,-29964,-29961,-29971,-29972,-29974,-29973,-29971,-29972,-29986,-29987,-29994,-29995,-29995,-29996]} 1. e4 {[%emt 0:01:16]} c5 {[%emt 0:00:03]} 2. Nf3 {[%emt 0:00:34]} d6 {[%emt 0:00:01]} 3. d4 {[%emt 0:00:24]} cxd4 {[%emt 0:00:04]} 4. Nxd4 {[%emt 0:00:05]} Nf6 {[%emt 0:00:03]} 5. Nc3 {[%emt 0:00:06]} e6 {[%emt 0:00:05]} 6. g4 {[%emt 0:00:16]} h6 {[%emt 0:00:07]} 7. h4 {[%emt 0:00:17]} Be7 {[%emt 0:00:06]} 8. Qf3 {[%emt 0:01:06]} h5 {[%emt 0:04:45]} 9. gxh5 {[%emt 0:03:04] B81: Sicilian Scheveningen: Keres Attack.} Nxh5 {[%emt 0:08:44]} 10. Bg5 {[%emt 0:12:52]} a6 {[%emt 0:00:44]} 11. Bxe7 {[%emt 0:10:10] White is better.} Qxe7 {[%emt 0:00:06]} 12. O-O-O {[%emt 0:00:26] [#]} b5 $146 {[%emt 0:05:04]} ({Predecessor:} 12... Bd7 13. Bg2 Nc6 14. Nxc6 Bxc6 15. Nd5 Bxd5 16. exd5 e5 17. Qg4 g6 18. Qb4 Nf4 {0-1 (37) Ezeokoli,M-Al Khater,H Baguio City 1987}) 13. Bh3 {[%emt 0:27:14] Hoping for Rhe1.} Qf6 {[%emt 0:01:00] [#]} (13... Bb7 $11) 14. Qe3 {[%emt 0:02:48]} (14. Nf5 $1 $16 {[%cal Oe4e5][%mdl 512] aiming for e5!} exf5 15. exf5) 14... Qf4 $15 {[%emt 0:15:06]} 15. a4 {[%emt 0:08:10]} Qxe3+ {[%emt 0:03:57]} 16. fxe3 {[%emt 0:00:06]} bxa4 {[%emt 0:00:10][%cal Oa4a3]} (16... Ke7 {looks sharper.} 17. axb5 axb5 18. Ndxb5 Ra1+) 17. Nxa4 {[%emt 0:10:29] Nb6 is the strong threat.} Bb7 {[%emt 0:01:18]} (17... Nd7 $15) 18. Rhg1 {[%emt 0:06:59]} (18. Nb6 $14) 18... Nd7 $11 {[%emt 0:05:35]} 19. Nb3 {[%emt 0:03:01]} (19. Nxe6 $11 fxe6 20. Rxd6) 19... Ke7 $17 {[%emt 0:01:37]} (19... Bxe4 20. Nc3 Nhf6 21. Rxd6 $15) 20. Rd4 {[%emt 0:02:15]} Nhf6 {[%emt 0:03:06][%csl LRe4,LRh4]} 21. Bg2 {[%emt 0:00:18][%cal Oe4e5]} Rad8 {[%emt 0:04:20]} ({Much less strong is} 21... Rxh4 22. e5 Rxd4 23. exf6+ (23. Bxb7 Rxa4 24. exf6+ Kxf6 $16) 23... Nxf6 24. Bxb7 (24. Nxd4 Bxg2 25. Rxg2 Rg8 $16) 24... Rxa4 25. Bxa8 $16) (21... Rab8 $142 22. Na5 Ne5) 22. Na5 {[%emt 0:01:57]} Ba8 {[%emt 0:00:05]} 23. Rgd1 {[%emt 0:00:45]} ({Better is} 23. Nc4 $1 $15) 23... Ne5 {[%emt 0:00:15]} (23... Rxh4 24. Rxd6 Rh2 25. e5 Bxg2 26. exf6+ gxf6 27. Nc3 $15) 24. Nb6 {[%emt 0:01:04]} Nfg4 {[%emt 0:00:21]} (24... Rxh4 $19 {[%cal Ra8e4]} 25. Nac4 (25. Nxa8 $2 Rxa8 26. Rxd6 Rc8 $19) 25... Nxc4 26. Rxc4 Bxe4 27. Bxe4 Rxe4 28. Nc8+ Kf8 29. Rxd6 Rxd6 30. Nxd6 Rxe3) 25. Nac4 {[%emt 0:03:18]} Nxc4 {[%emt 0:01:03]} (25... Rxh4 {seems wilder.} 26. Nxd6 Rb8 27. Nbc4 g5) 26. Nxc4 {[%emt 0:00:07]} Rxh4 {[%emt 0:00:41]} 27. Rxd6 $2 {[%emt 0:03:00]} (27. R1d2 $17) 27... Rxd6 $19 {[%emt 0:00:11]} 28. Rxd6 {[%emt 0:00:08] [#]} Ne5 {[%emt 0:04:54]} 29. Rd4 $17 {[%emt 0:00:55]} Nxc4 {[%emt 0:01:25]} 30. Rxc4 {[%emt 0:00:02][%mdl 4096] Endgame KRB-KRB} Rh2 {[%emt 0:22:35]} (30... Kd7 $15) 31. Rc8 {[%emt 0:00:42]} Rxg2 {[%emt 0:00:07]} 32. Rxa8 $11 {[%emt 0:00:05] KR-KR} g5 {[%emt 0:00:56]} 33. e5 {[%emt 0:00:37]} Rf2 {[%emt 0:00:43]} 34. Rxa6 {[%emt 0:01:15]} Rf5 {[%emt 0:02:27]} 35. Ra4 {[%emt 0:00:08]} Rxe5 {[%emt 0:00:04]} 36. Kd2 {[%emt 0:00:04]} f5 {[%emt 0:00:04]} 37. Rd4 {[%emt 0:00:32]} (37. c4 $11) 37... Rb5 $15 {[%emt 0:00:28]} 38. b3 {[%emt 0:00:24]} e5 {[%emt 0:00:07]} 39. Ra4 {[%emt 0:00:10]} g4 {[%emt 0:01:58][%cal Bg5g4,Bg4g3][%mdl 32]} 40. Ra6 $2 {[%emt 0:00:23]} ({White should play} 40. Ra8 $15) 40... Rb8 $1 $19 {[%emt 0:01:06]} 41. Rc6 $2 {[%emt 0:01:49]} (41. Ke1) 41... Rh8 {[%emt 0:00:39]} (41... Rg8 $142 {Threatens to win with ...g3.} 42. Ke1 f4 43. exf4 exf4) 42. Ke1 $2 {[%emt 0:00:54]} (42. Kd3 Rg8 43. Ra6) 42... Rh2 $2 {[%emt 0:00:28]} (42... f4 43. Rg6 g3) 43. Kf1 $2 {[%emt 0:00:31] [#]} (43. Rg6 Rxc2 44. e4) 43... g3 $1 {[%emt 0:01:36]} 44. b4 {[%emt 0:01:00]} f4 {[%emt 0:00:20] ( -> ...f3)} 45. exf4 {[%emt 0:00:13]} exf4 {[%emt 0:00:32][%cal Be5f4,Bf4f3,Bf3f2][%mdl 32] Black mates.} 46. Rc3 {[%emt 0:00:40]} Ke6 {[%emt 0:03:31]} 47. b5 {[%emt 0:00:36]} Kf5 {[%emt 0:01:10]} 48. b6 {[%emt 0:00:20]} Kg4 {[%emt 0:00:15]} ({And not} 48... Rf2+ 49. Kg1 Rd2 50. b7 $11) 49. b7 {[%emt 0:00:42] [#]} f3 $1 {[%emt 0:00:09][%cal Rh2h1]} 50. Kg1 {[%emt 0:00:40]} f2+ {[%emt 0:00:05]} 51. Kf1 {[%emt 0:00:16]} Rh1+ {[%emt 0:00:04] Weighted Error Value: White=0.92/Black=0.35} 0-1

[Event "67th Mexican-ch Open 2022"]
[Site "Chihuahua"]
[Date "2022.04.16"]
[Round "6.9"]
[White "Montes Orozco, Miguel Angel"]
[Black "Diaz Rosas, Julio Cesar"]
[Result "1/2-1/2"]
[ECO "D97"]
[WhiteElo "1914"]
[BlackElo "2393"]
[Annotator "TA"]
[PlyCount "95"]
[EventDate "2022.04.12"]
[EventType "swiss"]
[EventCountry "MEX"]
[SourceTitle "playchess.com"]
[Source "ChessBase"]
[SourceQuality "1"]
[TimeControl "5400+30"]

{[%evp 14,95,22,15,21,5,15,20,12,48,36,35,65,9,19,12,61,69,69,23,39,37,62,60,117,110,141,143,137,117,138,131,108,96,87,12,14,14,33,30,29,25,47,39,71,65,57,18,64,52,38,44,75,8,97,112,112,106,200,201,189,180,421,159,161,161,161,168,190,193,200,160,117,8,8,8,8,8,8,8,8,-5127,29980,29981]} 1. d4 {[%emt 0:01:43]} Nf6 {[%emt 0:00:09]} 2. c4 {[%emt 0:00:11]} g6 {[%emt 0:00:06]} 3. Nf3 {[%emt 0:01:01]} Bg7 {[%emt 0:00:07]} 4. Nc3 {[%emt 0:00:05]} d5 {[%emt 0:00:07]} 5. Qb3 {[%emt 0:00:08]} dxc4 {[%emt 0:00:07]} 6. Qxc4 {[%emt 0:00:05]} O-O {[%emt 0:00:06]} 7. e4 {[%emt 0:00:10]} Nc6 {[%emt 0:00:07]} 8. Be2 {[%emt 0:00:16]} e5 $1 {[%emt 0:00:08][%cal Re5d4][%mdl 4] is currently scoring better than 8...Bg4. D97: Grünfeld: Russian System: 7 e4, replies other than 7...Bg4.} 9. d5 {[%emt 0:00:39]} ({And not} 9. Nxe5 Nxd4 10. O-O {[#]} Nxe4 $1 {[%mdl 512]} 11. Nxe4 Be6 $17) 9... Nd4 {[%emt 0:00:04]} 10. Nxd4 {[%emt 0:02:22]} exd4 {[%emt 0:00:04] The position is equal.} 11. Qxd4 {[%emt 0:00:08]} c6 {[%emt 0:00:06][%cal Of6d5]} 12. Qc4 {[%emt 0:00:04]} b5 {[%emt 0:00:05]} 13. Qb3 {[%emt 0:08:16] [#]} (13. Qxc6 $14 Bd7 14. Qd6) 13... Re8 $146 {[%emt 0:12:09]} ({Predecessor:} 13... cxd5 14. exd5 Re8 15. O-O b4 16. Qxb4 Nxd5 17. Nxd5 Rxe2 18. Qc4 Re5 19. Nc7 Be6 20. Nxe6 Rxe6 {½-½ (46) Zubov,A (2608)-Baron,T (2506) Rishon Le Ziyyon 2015}) 14. O-O {[%emt 0:04:05]} b4 {[%emt 0:12:32]} (14... Nxe4 $11 15. Nxe4 Rxe4) 15. Qxb4 $14 {[%emt 0:02:46]} cxd5 {[%emt 0:00:16][%cal Rf6e4]} 16. Rd1 {[%emt 0:02:22]} (16. Bg5 $14) 16... a5 $11 {[%emt 0:03:37]} 17. Qc5 {[%emt 0:04:02]} Bb7 {[%emt 0:07:44]} 18. Bg5 {[%emt 0:09:06][%cal Re4d5]} d4 {[%emt 0:32:06]} (18... Qb8 $14) 19. Bb5 {[%emt 0:13:50]} Nd7 {[%emt 0:05:15]} 20. Bxd8 {[%emt 0:07:37] &Bianco is much more active.} Nxc5 {[%emt 0:00:14]} 21. Bxe8 {[%emt 0:00:10]} dxc3 {[%emt 0:00:07]} 22. bxc3 {[%emt 0:00:24]} Ne6 {[%emt 0:00:09] [#]} 23. Bxf7+ $1 {[%emt 0:00:08]} Kxf7 {[%emt 0:00:06] [#]} 24. Bxa5 {[%emt 0:00:06]} Bxe4 {[%emt 0:04:51]} 25. Bb4 {[%emt 0:00:17]} Ra7 {[%emt 0:02:01] Prevents Rd7+.} 26. f3 {[%emt 0:01:55]} Bc2 {[%emt 0:00:58]} 27. Rd2 {[%emt 0:06:40]} Ba4 {[%emt 0:01:53]} 28. Re1 {[%emt 0:01:19]} Bb5 {[%emt 0:02:45] This bishop pair is nice.} 29. a3 {[%emt 0:01:02][%cal Ba2a3,Ba3b4,Bb4b5][%mdl 32]} Bf6 {[%emt 0:05:32]} 30. g3 {[%emt 0:05:59]} Nc7 {[%emt 0:06:55]} (30... Rc7 $11 {deserves consideration.}) 31. c4 {[%emt 0:01:54]} Ba4 {[%emt 0:00:39]} 32. Kg2 {[%emt 0:01:24]} Na6 {[%emt 0:01:18]} 33. Re3 {[%emt 0:10:03]} ({White should try} 33. Re4 $16) 33... Nxb4 {[%emt 0:02:35]} (33... Rc7 $11 {remains equal.}) 34. axb4 $16 {[%emt 0:00:06]} Bd7 {[%emt 0:00:15]} 35. b5 {[%emt 0:02:27] b6 is the strong threat.} Be7 {[%emt 0:02:08]} (35... Bg5 $16 36. f4 Be7) 36. Re5 $18 {[%emt 0:01:57]} Rb7 {[%emt 0:00:36]} 37. g4 {[%emt 0:02:37]} Be6 $2 {[%emt 0:00:28]} (37... Bf6 38. Re4 Be7) 38. Rc2 $2 {[%emt 0:01:23]} (38. c5 $18) 38... Bd6 $16 {[%emt 0:00:26]} 39. Re4 {[%emt 0:00:36]} Bc5 {[%emt 0:00:13]} 40. Rce2 {[%emt 0:00:24]} Bc8 {[%emt 0:00:51]} 41. Re5 {[%emt 0:01:42]} Rc7 {[%emt 0:00:21]} 42. Ra2 {[%emt 0:01:06]} Bb7 {[%emt 0:00:35]} 43. Rxc5 {[%emt 0:00:26]} Rxc5 $11 {[%emt 0:00:16]} 44. Ra7 {[%emt 0:00:21]} Rc7 {[%emt 0:00:05][%cal Ob7f3] And now ...Bxf3+! would win.} 45. Kg3 {[%emt 0:00:31][%cal Oc4c5]} Re7 {[%emt 0:01:48]} 46. c5 {[%emt 0:09:37] Hoping for c6.} Bd5 {[%emt 0:00:30]} 47. Rb7 {[%emt 0:00:30][%mdl 8192]} Rd7 $4 {[%mdl 8192]} 48. Rxd7+ {[%mdl 32768] Weighted Error Value: White=0.40/Black=0.41. An unexpected result.} 1/2-1/2